[Event "4th Memorial Warakomska-B 2020"]
[Site "Suwalki"]
[Date "2020.08.13"]
[Round "9.6"]
[White "Sapinski, Sebastian"]
[Black "Czech, Mieczyslaw"]
[Result "1-0"]
[ECO "B92"]
[WhiteElo "1603"]
[BlackElo "1863"]
[Annotator "NA RC"]
[PlyCount "155"]
[EventDate "2020.08.06"]
[EventType "swiss"]
[EventCountry "POL"]
[SourceTitle "playchess.com"]
[Source "ChessBase"]
[SourceQuality "1"]
[TimeControl "40/5400+30:1800+30"]

{[%evp 8,155,19,18,17,20,22,8,29,6,12,-13,4,0,14,6,0,-19,-9,-7,-6,-56,-11,-16,-5,-5,0,-14,-4,-27,0,-18,0,-14,22,14,20,14,15,-15,-12,-24,15,0,0,-20,24,0,28,18,25,-3,0,-25,0,-32,-11,-30,0,0,0,0,0,0,0,-5,15,27,60,47,59,55,51,40,46,42,52,43,45,40,60,51,60,64,51,57,53,53,50,54,48,35,43,43,50,49,51,49,49,48,53,0,53,3,9,10,14,0,0,0,9,34,111,138,32767,32767,32767,32767,32767,32767,32767,32767,581,697,443,679,743,318,423,404,372,408,429,543,451,731,1925,840,946,1885,1523,2772,2578,7737,4710,29969,2213,29963,29941,29982]} 1. e4 {[%emt 0:00:00]} c5 {[%emt 0:00:05]} 2. Nf3 {[%emt 0:00:00]} d6 {[%emt 0:00:18]} 3. d4 {[%emt 0:00:00]} cxd4 {[%emt 0:00:20]} 4. Nxd4 {[%emt 0:00:00]} Nf6 {[%emt 0:01:44]} 5. Nc3 {[%emt 0:01:15]} a6 {[%emt 0:00:22]} 6. Be2 {[%emt 0:07:05]} e5 {[%emt 0:01:33]} 7. Nb3 {[%emt 0:01:29]} Be6 {[%emt 0:00:21]} 8. Bg5 {[%emt 0:01:15]} Nbd7 {[%emt 0:01:11] B92: Sicilian Najdorf: 6 Be2.} 9. Nd5 {[%emt 0:06:41]} h6 {[%emt 0:02:30]} 10. Bxf6 {[%emt 0:02:18]} Nxf6 {[%emt 0:00:23]} 11. Nxf6+ {[%emt 0:05:43]} Qxf6 {[%emt 0:01:39] [#]} 12. c4 $146 {[%emt 0:03:30]} ({Predecessor:} 12. O-O Rc8 13. Re1 Be7 14. Na5 Rc7 15. b3 Rd7 16. Nc4 Bd8 17. a4 O-O 18. Bd3 {0-1 (43) Hossain,E (2496)-Adly,A (2607) Kolkata 2012}) 12... Rc8 {[%emt 0:01:12]} 13. Nd2 {[%emt 0:01:09]} Be7 {[%emt 0:02:19]} 14. Qa4+ {[%emt 0:03:36]} Bd7 {[%emt 0:00:26]} 15. Qb3 {[%emt 0:00:26]} Bc6 {[%emt 0:00:31]} 16. O-O {[%emt 0:01:25]} O-O {[%emt 0:00:21]} 17. Rad1 {[%emt 0:13:28]} Qg6 {[%emt 0:02:10]} 18. f3 {[%emt 0:02:34]} Kh8 {[%emt 0:02:32]} 19. Bd3 {[%emt 0:03:17]} Bg5 {[%emt 0:00:49]} 20. Rfe1 {[%emt 0:02:31]} Rce8 {[%emt 0:01:01]} 21. Nf1 {[%emt 0:01:51]} Qe6 {[%emt 0:04:52]} 22. Qb4 {[%emt 0:08:55]} Be7 {[%emt 0:02:00]} 23. Qb6 {[%emt 0:03:28]} Bd8 {[%emt 0:04:30]} 24. Qb4 {[%emt 0:01:56]} Be7 {[%emt 0:00:21]} 25. Qa5 {[%emt 0:06:18]} Bd8 {[%emt 0:00:31]} 26. Qa3 {[%emt 0:01:52]} Be7 {[%emt 0:02:20]} 27. b4 {[%emt 0:02:34]} Qd7 {[%emt 0:02:07]} 28. Ne3 {[%emt 0:02:22]} g6 {[%emt 0:00:49]} 29. Rb1 {[%emt 0:01:32]} b5 {[%emt 0:01:59]} 30. cxb5 {[%emt 0:06:03]} ({Not} 30. Qxa6 $2 Ra8 $19) 30... axb5 {[%emt 0:02:03]} 31. Qb3 {[%emt 0:00:33]} Qb7 {[%emt 0:01:38]} 32. Nd5 {[%emt 0:02:31]} Bxd5 {[%emt 0:00:13]} 33. Qxd5 {[%emt 0:00:04]} Qxd5 {[%emt 0:02:17]} 34. exd5 {[%emt 0:00:04]} Rb8 {[%emt 0:00:31]} 35. Rec1 {[%emt 0:00:27]} Rb7 {[%emt 0:02:26]} 36. Rc6 {[%emt 0:00:24]} Rd8 {[%emt 0:02:03]} 37. Rbc1 {[%emt 0:01:11]} Rdd7 {[%emt 0:00:22]} 38. Ra6 {[%emt 0:00:42]} Rd8 {[%emt 0:02:10]} 39. Rcc6 {[%emt 0:01:11]} Rdb8 {[%emt 0:00:15]} 40. Kf2 {[%emt 0:00:00]} Kg7 {[%emt 0:00:00]} 41. Ra5 {[%emt 0:02:10]} Bd8 {[%emt 0:02:09]} 42. Ra3 {[%emt 0:01:32]} Be7 {[%emt 0:00:24]} 43. Rca6 {[%emt 0:00:29]} Kf6 {[%emt 0:23:14]} 44. Ra8 {[%emt 0:03:04]} Bd8 {[%emt 0:01:13]} 45. Ke2 {[%emt 0:03:57]} Ke7 {[%emt 0:01:49]} 46. Rxb8 {[%emt 0:00:43]} Rxb8 {[%emt 0:00:04]} 47. Ra7+ {[%emt 0:00:05]} Ke8 {[%emt 0:00:04]} 48. Kd2 {[%emt 0:01:37]} Kf8 {[%emt 0:01:21]} 49. Rd7 {[%emt 0:02:19]} Be7 {[%emt 0:00:30]} 50. Kc2 {[%emt 0:01:23]} Ke8 {[%emt 0:00:15]} 51. Ra7 {[%emt 0:00:32]} Bd8 $1 {[%emt 0:00:12]} 52. Kb3 {[%emt 0:00:16]} Kf8 {[%emt 0:00:37]} 53. Rd7 {[%emt 0:03:23]} Be7 $1 {[%emt 0:00:02]} 54. Ra7 {[%emt 0:02:51]} Bd8 $1 {[%emt 0:00:06]} 55. a4 {[%emt 0:00:16]} bxa4+ {[%emt 0:00:33]} 56. Kxa4 {[%emt 0:00:13]} Bg5 {[%emt 0:08:15]} 57. Ba6 {[%emt 0:03:42]} Bd2 {[%emt 0:08:17]} 58. Rb7 {[%emt 0:04:20]} Ra8 {[%emt 0:01:20]} 59. b5 {[%emt 0:00:08]} f5 {[%emt 0:05:36]} (59... Ke8 $1 $11) 60. Rd7 {[%emt 0:04:50]} e4 {[%emt 0:00:07]} 61. fxe4 {[%emt 0:00:27]} fxe4 {[%emt 0:00:06]} 62. Rxd6 {[%emt 0:00:13]} e3 {[%emt 0:00:12]} 63. Re6 {[%emt 0:00:18]} Kf7 {[%emt 0:00:18]} 64. Kb3 {[%emt 0:02:17]} Ra7 $2 {[%emt 0:01:32]} (64... Re8 $16 65. b6 Rxe6 66. dxe6+ Kxe6) 65. b6 {[%emt 0:05:51]} Ra8 {[%emt 0:02:57]} 66. b7 {[%emt 0:00:19]} Rb8 {[%emt 0:00:17]} 67. Kc2 {[%emt 0:00:27]} (67. Kc4 $142) 67... Bb4 {[%emt 0:01:15]} 68. Rxe3 {[%emt 0:00:20]} Bd6 {[%emt 0:00:11]} 69. Re6 {[%emt 0:00:07]} Bxh2 {[%emt 0:00:09]} 70. Kd3 {[%emt 0:00:53]} Re8 {[%emt 0:02:33]} 71. Rc6 {[%emt 0:00:50]} Re1 {[%emt 0:04:47]} (71... Rd8 $142 72. Kc4 Bb8) 72. Kd4 {[%emt 0:01:50]} (72. d6 $142 Rb1 73. Kc2 Rxb7 74. Bxb7) 72... Be5+ 73. Kc5 Rb1 {[%emt 0:08:30]} 74. d6 {[%emt 0:01:49]} Bf4 {[%emt 0:03:32]} 75. Rc8 {[%emt 0:01:06]} Be3+ {[%emt 0:00:10]} 76. Kc6 {[%emt 0:01:06]} Rb6+ {[%emt 0:00:44]} 77. Kd7 {[%emt 0:00:03]} Bf4 {[%emt 0:01:16]} 78. b8=Q {[%emt 0:00:19]} 1-0

[Event "4th Memorial Warakomska-B 2020"]
[Site "Suwalki"]
[Date "2020.08.13"]
[Round "9.7"]
[White "Borowik, Wojciech"]
[Black "Zalega, Maciej"]
[Result "0-1"]
[ECO "E91"]
[WhiteElo "1769"]
[BlackElo "1743"]
[Annotator "NA RC"]
[PlyCount "124"]
[EventDate "2020.08.06"]
[EventType "swiss"]
[EventCountry "POL"]
[SourceTitle "playchess.com"]
[Source "ChessBase"]
[SourceQuality "1"]
[TimeControl "40/5400+30:1800+30"]

1. d4 {[%emt 0:00:57]} Nf6 {[%emt 0:00:00]} 2. Nf3 {[%emt 0:00:11]} g6 {[%emt 0:00:00]} 3. c4 {[%emt 0:00:14]} Bg7 {[%emt 0:00:03]} 4. Nc3 {[%emt 0:00:12]} d6 {[%emt 0:00:03]} 5. e4 {[%emt 0:00:31]} O-O {[%emt 0:00:12]} 6. Be2 {[%emt 0:00:24]} Nbd7 {[%emt 0:00:39]} 7. O-O {[%emt 0:01:03]} e5 {[%emt 0:00:37]} 8. dxe5 {[%emt 0:01:41]} Nxe5 {[%emt 0:00:07]} 9. Nxe5 {[%emt 0:02:49]} dxe5 {[%emt 0:00:13]} 10. Qc2 {[%emt 0:00:04]} c6 {[%emt 0:00:19]} 11. Rb1 {[%emt 0:10:10]} Be6 {[%emt 0:03:53]} 12. b4 {[%emt 0:01:08]} Qc7 {[%emt 0:04:35]} 13. a4 {[%emt 0:05:13]} Rfd8 {[%emt 0:08:26]} 14. h3 {[%emt 0:06:06]} Nd7 {[%emt 0:12:50]} 15. Be3 {[%emt 0:04:49]} Nb6 {[%emt 0:01:46]} 16. c5 {[%emt 0:05:04]} Nc4 {[%emt 0:02:20]} 17. Bxc4 {[%emt 0:03:48]} Bxc4 {[%emt 0:00:02]} 18. Rfd1 {[%emt 0:00:08]} Bf6 {[%emt 0:30:07]} 19. Ne2 {[%emt 0:11:43]} Be6 {[%emt 0:05:30]} 20. Rxd8+ {[%emt 0:09:31]} Rxd8 {[%emt 0:00:20]} 21. Rd1 {[%emt 0:03:22]} Be7 {[%emt 0:07:42]} 22. Rxd8+ {[%emt 0:14:00]} Qxd8 {[%emt 0:00:30]} 23. f3 {[%emt 0:04:09]} f5 {[%emt 0:02:13]} 24. exf5 {[%emt 0:02:15]} gxf5 {[%emt 0:01:30]} 25. Nc3 {[%emt 0:02:10]} Bh4 {[%emt 0:01:29]} 26. g3 {[%emt 0:08:26]} Bxg3 {[%emt 0:01:09]} 27. Qg2 {[%emt 0:00:41]} Qh4 {[%emt 0:01:15]} 28. Bf2 {[%emt 0:00:08]} f4 {[%emt 0:00:28]} 29. Ne4 {[%emt 0:00:12]} Bxh3 {[%emt 0:01:12]} 30. Bxg3 {[%emt 0:01:18]} fxg3 {[%emt 0:04:00]} 31. Qxg3+ {[%emt 0:00:52]} Qxg3+ {[%emt 0:00:17]} 32. Nxg3 {[%emt 0:00:05]} Be6 {[%emt 0:04:36]} 33. Kf2 {[%emt 0:00:57]} Bb3 {[%emt 0:01:00]} 34. a5 {[%emt 0:00:04]} Bc2 {[%emt 0:00:45]} 35. Ke3 {[%emt 0:02:01]} Kf7 {[%emt 0:01:01]} 36. Ne2 {[%emt 0:00:42]} Ke6 {[%emt 0:01:26]} 37. Nc3 {[%emt 0:00:18]} h5 {[%emt 0:01:50]} 38. Kf2 {[%emt 0:00:42]} h4 {[%emt 0:01:22]} 39. Kg2 {[%emt 0:00:40]} Kf5 {[%emt 0:00:25]} 40. b5 {[%emt 0:00:00]} cxb5 {[%emt 0:00:00]} 41. Nxb5 {[%emt 0:05:55]} Kf4 {[%emt 0:20:22]} 42. Nxa7 {[%emt 0:17:27]} Ba4 {[%emt 0:03:46]} 43. a6 {[%emt 0:07:59]} bxa6 {[%emt 0:01:00]} 44. c6 {[%emt 0:00:03]} a5 {[%emt 0:01:21]} 45. c7 {[%emt 0:00:04]} Bd7 {[%emt 0:00:08]} 46. c8=Q {[%emt 0:01:28]} h3+ {[%emt 0:00:11]} 47. Kf2 {[%emt 0:00:47]} Bxc8 {[%emt 0:00:19]} 48. Nxc8 {[%emt 0:00:02]} h2 {[%emt 0:01:32]} 49. Kg2 {[%emt 0:00:01]} h1=Q+ {[%emt 0:00:19]} 50. Kxh1 {[%emt 0:00:01]} a4 {[%emt 0:00:42]} 51. Nb6 {[%emt 0:00:32]} a3 {[%emt 0:00:03]} 52. Nd5+ {[%emt 0:00:30]} Kxf3 {[%emt 0:00:05]} 53. Nb4 {[%emt 0:01:59]} Kf2 {[%emt 0:00:16]} 54. Nd3+ {[%emt 0:00:20]} Kf1 {[%emt 0:00:06]} 55. Nc5 {[%emt 0:00:51]} a2 {[%emt 0:00:31]} 56. Nb3 {[%emt 0:00:06]} e4 {[%emt 0:00:48]} 57. Nd2+ {[%emt 0:00:50]} Kf2 {[%emt 0:00:14]} 58. Nxe4+ {[%emt 0:00:23]} Ke3 {[%emt 0:00:10]} 59. Ng3 {[%emt 0:00:07]} a1=Q+ {[%emt 0:00:13]} 60. Kg2 {[%emt 0:00:09]} Qg7 {[%emt 0:00:38]} 61. Kf1 {[%emt 0:00:09]} Kf3 {[%emt 0:00:10]} 62. Ne2 {[%emt 0:00:21]} Qa1+ {[%emt 0:00:08]} 0-1

[Event "4th Memorial Warakomska-B 2020"]
[Site "Suwalki"]
[Date "2020.08.13"]
[Round "9.8"]
[White "Pieczulis, Blazej"]
[Black "Kotarski, Bartosz"]
[Result "0-1"]
[ECO "A44"]
[WhiteElo "1608"]
[BlackElo "1742"]
[Annotator "NA RC"]
[PlyCount "116"]
[EventDate "2020.08.06"]
[EventType "swiss"]
[EventCountry "POL"]
[SourceTitle "playchess.com"]
[Source "ChessBase"]
[SourceQuality "1"]
[TimeControl "40/5400+30:1800+30"]

1. d4 {[%emt 0:00:00]} c5 {[%emt 0:00:00]} 2. d5 {[%emt 0:01:00]} e5 {[%emt 0:00:00]} 3. c4 {[%emt 0:00:32]} d6 {[%emt 0:00:00]} 4. Nc3 {[%emt 0:00:40]} Nf6 {[%emt 0:00:45]} 5. e4 {[%emt 0:01:09]} Be7 {[%emt 0:00:06]} 6. g3 {[%emt 0:00:16]} O-O {[%emt 0:00:11]} 7. Bg2 {[%emt 0:00:31]} Ne8 {[%emt 0:00:45]} 8. Nge2 {[%emt 0:00:17]} g6 {[%emt 0:00:08]} 9. O-O {[%emt 0:00:23]} f5 {[%emt 0:00:05]} 10. f4 {[%emt 0:01:03]} exf4 {[%emt 0:08:54]} 11. Nxf4 {[%emt 0:09:15]} Bf6 12. Qe2 Ng7 {[%emt 0:03:36]} 13. Nd3 {[%emt 0:03:11]} Re8 14. Bf4 {[%emt 0:08:16]} g5 {[%emt 0:17:40]} 15. Bd2 Nd7 {[%emt 0:02:23]} 16. Rae1 {[%emt 0:02:01]} Bd4+ {[%emt 0:11:29]} 17. Kh1 {[%emt 0:00:45]} Qf6 18. Qd1 {[%emt 0:05:26]} Nb6 {[%emt 0:05:46]} 19. Qb3 {[%emt 0:02:27]} Qg6 {[%emt 0:06:11]} 20. Nf2 {[%emt 0:12:52]} Bd7 21. Nb5 {[%emt 0:00:11]} Bxb5 {[%emt 0:10:38]} 22. Qxb5 {[%emt 0:02:07]} Rf8 {[%emt 0:07:43]} 23. exf5 {[%emt 0:00:30]} Nxf5 {[%emt 0:00:11]} 24. Be4 {[%emt 0:02:57]} Qg7 {[%emt 0:05:13]} 25. Nh3 {[%emt 0:04:31]} Qg6 {[%emt 0:04:14]} 26. Nxg5 {[%emt 0:05:11]} Nxg3+ {[%emt 0:03:04]} 27. hxg3 {[%emt 0:00:37]} Rxf1+ {[%emt 0:00:03]} 28. Rxf1 {[%emt 0:01:40]} Qh5+ {[%emt 0:00:02]} 29. Kg2 {[%emt 0:00:22]} Qe2+ {[%emt 0:00:02]} 30. Kh3 {[%emt 0:00:26]} Qxf1+ {[%emt 0:00:06]} 31. Kh4 {[%emt 0:00:11]} Qxc4 {[%emt 0:01:01]} 32. Bxh7+ {[%emt 0:01:01]} Kg7 {[%emt 0:00:26]} 33. Qxc4 {[%emt 0:00:06]} Nxc4 {[%emt 0:00:02]} 34. Bf4 {[%emt 0:00:45]} Rh8 {[%emt 0:00:10]} 35. b3 {[%emt 0:00:05]} Ne5 {[%emt 0:00:10]} 36. g4 {[%emt 0:00:36]} Rxh7+ {[%emt 0:00:26]} 37. Nxh7 {[%emt 0:00:06]} Kxh7 {[%emt 0:00:03]} 38. Kg5 {[%emt 0:00:19]} Kg7 {[%emt 0:00:20]} 39. Kf5 {[%emt 0:00:09]} Kf7 {[%emt 0:00:09]} 40. g5 {[%emt 0:00:00]} Ke7 {[%emt 0:00:00]} 41. g6 {[%emt 0:00:00]} c4 {[%emt 0:21:37]} 42. Bg5+ {[%emt 0:01:48]} Kf8 {[%emt 0:02:50]} 43. bxc4 {[%emt 0:01:46]} Nxc4 {[%emt 0:00:10]} 44. Ke6 {[%emt 0:00:07]} Kg7 {[%emt 0:00:41]} 45. Be7 {[%emt 0:00:05]} Bc5 {[%emt 0:00:23]} 46. Kd7 {[%emt 0:00:28]} Kxg6 {[%emt 0:00:23]} 47. Kc7 {[%emt 0:00:26]} b6 {[%emt 0:00:01]} 48. Kb7 {[%emt 0:00:23]} a5 {[%emt 0:00:11]} 49. Kc6 {[%emt 0:00:09]} Kf5 {[%emt 0:01:28]} 50. Bd8 {[%emt 0:00:24]} Ke5 {[%emt 0:00:56]} 51. Bc7 {[%emt 0:00:18]} Ne3 {[%emt 0:01:18]} 52. Bxb6 {[%emt 0:00:18]} Bxb6 {[%emt 0:00:02]} 53. Kxb6 {[%emt 0:00:03]} Nc4+ {[%emt 0:00:29]} 54. Kc6 {[%emt 0:00:11]} Kd4 {[%emt 0:00:07]} 55. Kb5 {[%emt 0:00:09]} Kxd5 {[%emt 0:00:06]} 56. a4 {[%emt 0:00:06]} Kd4 {[%emt 0:00:08]} 57. Kc6 {[%emt 0:00:10]} d5 {[%emt 0:00:08]} 58. Kb5 {[%emt 0:00:04]} Ke5 0-1

[Event "4th Memorial Warakomska-B 2020"]
[Site "Suwalki"]
[Date "2020.08.13"]
[Round "9.9"]
[White "Siekanska, Zuzanna"]
[Black "Racis, Michal"]
[Result "0-1"]
[ECO "D35"]
[WhiteElo "1680"]
[BlackElo "1453"]
[Annotator "NA RC"]
[PlyCount "94"]
[EventDate "2020.08.06"]
[EventType "swiss"]
[EventCountry "POL"]
[SourceTitle "playchess.com"]
[Source "ChessBase"]
[SourceQuality "1"]
[TimeControl "40/5400+30:1800+30"]

1. d4 {[%emt 0:00:00]} d5 2. c4 {[%emt 0:00:00]} e6 {[%emt 0:00:23]} 3. Nc3 {[%emt 0:00:00]} Nf6 {[%emt 0:01:42]} 4. cxd5 {[%emt 0:00:00]} exd5 {[%emt 0:00:36]} 5. Bg5 {[%emt 0:00:00]} Be7 {[%emt 0:00:48]} 6. e3 {[%emt 0:00:11]} O-O {[%emt 0:02:28]} 7. Bd3 {[%emt 0:00:10]} b6 {[%emt 0:01:38]} 8. Bxf6 {[%emt 0:01:33]} Bxf6 {[%emt 0:04:18]} 9. Qh5 {[%emt 0:00:14]} g6 {[%emt 0:07:02]} 10. Qxd5 {[%emt 0:00:46]} c6 {[%emt 0:02:41]} 11. Qf3 {[%emt 0:03:46]} Qe7 {[%emt 0:07:04]} 12. Nge2 {[%emt 0:02:00]} Bb7 {[%emt 0:01:26]} 13. O-O {[%emt 0:01:53]} Re8 {[%emt 0:04:15]} 14. Be4 {[%emt 0:10:41]} Bg7 {[%emt 0:03:30]} 15. Rfd1 {[%emt 0:05:00]} f5 {[%emt 0:01:32]} 16. Bc2 {[%emt 0:01:33]} Nd7 {[%emt 0:09:23]} 17. Nf4 {[%emt 0:01:55]} Rad8 {[%emt 0:08:29]} 18. Bb3+ {[%emt 0:00:36]} Kh8 {[%emt 0:01:01]} 19. Nxg6+ {[%emt 0:02:07]} hxg6 {[%emt 0:02:22]} 20. Qh3+ {[%emt 0:00:07]} Bh6 {[%emt 0:00:47]} 21. Qxh6+ {[%emt 0:00:07]} Qh7 {[%emt 0:00:13]} 22. Qg5 {[%emt 0:04:04]} Qg7 {[%emt 0:03:42]} 23. d5 {[%emt 0:03:13]} Nf6 {[%emt 0:00:54]} 24. Qh4+ {[%emt 0:10:12]} Nh7 {[%emt 0:00:37]} 25. dxc6 {[%emt 0:00:24]} Rxd1+ {[%emt 0:01:36]} 26. Rxd1 {[%emt 0:00:08]} Bxc6 {[%emt 0:00:27]} 27. Qc4 {[%emt 0:03:57]} Qf6 {[%emt 0:03:13]} 28. Qd4 {[%emt 0:06:26]} Kg7 {[%emt 0:02:12]} 29. Nd5 {[%emt 0:04:38]} Qe5 {[%emt 0:02:56]} 30. Nb4 {[%emt 0:02:39]} Bb5 {[%emt 0:01:19]} 31. a4 {[%emt 0:03:17]} Be2 {[%emt 0:01:22]} 32. Qxe5+ {[%emt 0:02:15]} Rxe5 {[%emt 0:00:02]} 33. Rd7+ {[%emt 0:01:53]} Kh6 {[%emt 0:00:22]} 34. Rxa7 {[%emt 0:01:00]} Rc5 {[%emt 0:00:18]} 35. h4 {[%emt 0:00:14]} Nf6 {[%emt 0:00:11]} 36. Na2 {[%emt 0:04:16]} Ne4 {[%emt 0:01:40]} 37. Rd7 {[%emt 0:05:13]} b5 {[%emt 0:01:04]} 38. a5 {[%emt 0:03:50]} b4 {[%emt 0:00:26]} 39. Rd5 {[%emt 0:00:20]} Rc8 {[%emt 0:01:28]} 40. Nxb4 {[%emt 0:00:00]} Rc1+ {[%emt 0:00:00]} 41. Kh2 {[%emt 0:02:02]} Nxf2 {[%emt 0:00:45]} 42. Rd2 {[%emt 0:05:22]} Rh1+ {[%emt 0:00:26]} 43. Kg3 {[%emt 0:00:49]} Ne4+ {[%emt 0:00:07]} 44. Kf4 {[%emt 0:00:17]} Rxh4+ {[%emt 0:00:25]} 45. Ke5 {[%emt 0:00:08]} Nxd2 {[%emt 0:00:06]} 46. a6 {[%emt 0:00:56]} Bxa6 {[%emt 0:00:47]} 47. Nxa6 {[%emt 0:00:08]} Nxb3 {[%emt 0:00:07]} 0-1

[Event "4th Memorial Warakomska-B 2020"]
[Site "Suwalki"]
[Date "2020.08.13"]
[Round "9.11"]
[White "Milanowski, Jan"]
[Black "Wydornik, Robert"]
[Result "1-0"]
[ECO "D02"]
[WhiteElo "1787"]
[BlackElo "1361"]
[Annotator "NA RC"]
[PlyCount "81"]
[EventDate "2020.08.06"]
[EventType "swiss"]
[EventCountry "POL"]
[SourceTitle "playchess.com"]
[Source "ChessBase"]
[SourceQuality "1"]
[TimeControl "40/5400+30:1800+30"]

1. d4 {[%emt 0:00:00]} d5 {[%emt 0:00:00]} 2. Nf3 {[%emt 0:00:00]} Nf6 {[%emt 0:00:00]} 3. Bf4 {[%emt 0:00:11]} Bf5 {[%emt 0:00:09]} 4. e3 {[%emt 0:00:18]} e6 {[%emt 0:00:18]} 5. Nbd2 {[%emt 0:00:23]} Be7 {[%emt 0:01:05]} 6. Be2 {[%emt 0:01:23]} O-O {[%emt 0:01:27]} 7. Nh4 {[%emt 0:00:20]} Bg6 {[%emt 0:00:35]} 8. Nxg6 {[%emt 0:00:10]} hxg6 {[%emt 0:00:19]} 9. h4 {[%emt 0:00:53]} Bd6 {[%emt 0:00:57]} 10. h5 {[%emt 0:02:39]} Bxf4 {[%emt 0:00:56]} 11. exf4 {[%emt 0:00:05]} gxh5 {[%emt 0:01:28]} 12. Bxh5 {[%emt 0:00:10]} g6 {[%emt 0:02:32]} 13. Bf3 {[%emt 0:01:20]} Kg7 {[%emt 0:00:51]} 14. Qe2 {[%emt 0:00:43]} Nbd7 {[%emt 0:01:51]} 15. g4 {[%emt 0:06:56]} Rh8 {[%emt 0:01:25]} 16. Rxh8 {[%emt 0:01:18]} Qxh8 {[%emt 0:00:06]} 17. O-O-O {[%emt 0:00:06]} c5 {[%emt 0:03:49]} 18. g5 {[%emt 0:03:14]} Nh5 {[%emt 0:13:23]} 19. Qb5 {[%emt 0:15:03]} Qc8 {[%emt 0:04:51]} 20. Bxh5 {[%emt 0:00:33]} gxh5 {[%emt 0:02:19]} 21. dxc5 {[%emt 0:01:28]} Nxc5 {[%emt 0:01:51]} 22. Qe2 {[%emt 0:02:32]} Qc7 {[%emt 0:14:50]} 23. Rh1 {[%emt 0:16:43]} Rh8 {[%emt 0:03:12]} 24. Rh4 {[%emt 0:02:44]} a5 {[%emt 0:05:18]} 25. Kb1 {[%emt 0:01:51]} a4 {[%emt 0:04:44]} 26. a3 {[%emt 0:00:21]} Qd6 {[%emt 0:06:45]} 27. Nf3 {[%emt 0:05:32]} Nd7 {[%emt 0:03:51]} 28. Nd4 {[%emt 0:00:26]} Qc5 {[%emt 0:05:25]} 29. f5 {[%emt 0:02:36]} e5 {[%emt 0:03:35]} 30. f6+ {[%emt 0:00:38]} Kg6 {[%emt 0:01:51]} 31. f4 {[%emt 0:04:16]} e4 {[%emt 0:05:36]} 32. Qe3 {[%emt 0:04:15]} Qc4 {[%emt 0:03:42]} 33. f5+ {[%emt 0:01:20]} Kh7 {[%emt 0:00:08]} 34. Rxh5+ {[%emt 0:00:33]} Kg8 {[%emt 0:00:04]} 35. Rxh8+ {[%emt 0:00:26]} Kxh8 {[%emt 0:00:04]} 36. Qh3+ {[%emt 0:00:59]} Kg8 {[%emt 0:00:06]} 37. Qh6 {[%emt 0:01:26]} Qf1+ {[%emt 0:00:43]} 38. Ka2 {[%emt 0:00:08]} Qc4+ {[%emt 0:00:26]} 39. b3 {[%emt 0:00:11]} axb3+ {[%emt 0:00:32]} 40. cxb3 {[%emt 0:00:00]} Nxf6 {[%emt 0:00:00]} 41. gxf6 {[%emt 0:01:31]} 1-0

[Event "4th Memorial Warakomska-B 2020"]
[Site "Suwalki"]
[Date "2020.08.13"]
[Round "9.12"]
[White "Lukasik, Zuzanna"]
[Black "Bancarewicz, Aleks"]
[Result "0-1"]
[ECO "B50"]
[WhiteElo "1553"]
[BlackElo "1781"]
[Annotator "NA RC"]
[PlyCount "118"]
[EventDate "2020.08.06"]
[EventType "swiss"]
[EventCountry "POL"]
[SourceTitle "playchess.com"]
[Source "ChessBase"]
[SourceQuality "1"]
[TimeControl "40/5400+30:1800+30"]

1. e4 {[%emt 0:00:00]} c5 {[%emt 0:00:00]} 2. Nf3 {[%emt 0:00:00]} d6 {[%emt 0:00:00]} 3. c3 {[%emt 0:00:00]} Nf6 {[%emt 0:00:24]} 4. Be2 {[%emt 0:01:53]} Nbd7 {[%emt 0:03:06]} 5. Qc2 {[%emt 0:03:03]} Qc7 {[%emt 0:00:12]} 6. d3 {[%emt 0:02:35]} g6 {[%emt 0:01:22]} 7. a4 {[%emt 0:03:45]} Bg7 {[%emt 0:01:14]} 8. Na3 {[%emt 0:03:02]} O-O {[%emt 0:04:08]} 9. Bd2 {[%emt 0:05:54]} a6 {[%emt 0:08:58]} 10. O-O {[%emt 0:00:51]} b6 {[%emt 0:01:07]} 11. Rac1 {[%emt 0:06:31]} Bb7 {[%emt 0:02:51]} 12. b4 {[%emt 0:03:13]} d5 {[%emt 0:10:24]} 13. exd5 {[%emt 0:08:26]} Nxd5 {[%emt 0:00:42]} 14. Qb3 {[%emt 0:06:36]} Rac8 {[%emt 0:09:04]} 15. d4 {[%emt 0:11:51]} cxb4 {[%emt 0:03:09]} 16. cxb4 {[%emt 0:00:30]} Qb8 {[%emt 0:00:20]} 17. Rxc8 {[%emt 0:06:05]} Rxc8 {[%emt 0:01:12]} 18. Rc1 {[%emt 0:06:27]} Rxc1+ {[%emt 0:16:34]} 19. Bxc1 {[%emt 0:00:07]} e6 {[%emt 0:00:01]} 20. Bd2 {[%emt 0:07:10]} h6 {[%emt 0:03:00]} 21. b5 {[%emt 0:03:33]} a5 {[%emt 0:02:08]} 22. Nc4 {[%emt 0:03:33]} Nf4 {[%emt 0:04:54]} 23. Bxf4 {[%emt 0:05:21]} Qxf4 {[%emt 0:00:13]} 24. Qe3 {[%emt 0:01:28]} Qc7 {[%emt 0:02:11]} 25. Qd3 {[%emt 0:03:27]} Nf6 {[%emt 0:04:10]} 26. Nfe5 {[%emt 0:02:35]} Nd5 {[%emt 0:03:04]} 27. Bf3 {[%emt 0:01:25]} Nb4 {[%emt 0:00:39]} 28. Qe2 {[%emt 0:03:17]} Bd5 {[%emt 0:14:12]} 29. Bxd5 {[%emt 0:01:05]} exd5 {[%emt 0:00:01]} 30. Nd2 {[%emt 0:00:33]} Nc2 {[%emt 0:00:36]} 31. Nef3 {[%emt 0:00:40]} Nxd4 {[%emt 0:00:47]} 32. Nxd4 {[%emt 0:00:11]} Bxd4 {[%emt 0:00:02]} 33. Nf3 {[%emt 0:00:42]} Qc1+ {[%emt 0:02:26]} 34. Qf1 {[%emt 0:00:14]} Qc5 {[%emt 0:01:23]} 35. h3 {[%emt 0:00:36]} Kg7 {[%emt 0:01:46]} 36. Qe2 {[%emt 0:00:19]} Bf6 {[%emt 0:00:06]} 37. Qd2 {[%emt 0:00:53]} d4 {[%emt 0:00:32]} 38. Ne1 {[%emt 0:00:32]} Qa3 {[%emt 0:01:27]} 39. Qc2 {[%emt 0:00:25]} Qa1 {[%emt 0:00:30]} 40. Kf1 {[%emt 0:00:00]} d3 {[%emt 0:00:00]} 41. Qxd3 {[%emt 0:00:41]} Qxa4 {[%emt 0:17:22]} 42. Nc2 {[%emt 0:03:06]} Qf4 {[%emt 0:00:32]} 43. Ne3 {[%emt 0:01:58]} Bd4 {[%emt 0:00:53]} 44. Ke2 {[%emt 0:00:56]} Qe5 {[%emt 0:02:11]} 45. Kd1 {[%emt 0:02:35]} Bxe3 {[%emt 0:02:20]} 46. fxe3 {[%emt 0:00:15]} Kh7 {[%emt 0:01:09]} 47. Ke2 {[%emt 0:03:29]} h5 {[%emt 0:00:29]} 48. Qd7 {[%emt 0:01:40]} Qe6 {[%emt 0:02:45]} 49. Qc6 {[%emt 0:00:29]} Kg7 {[%emt 0:00:27]} 50. Qc3+ {[%emt 0:01:15]} Qf6 {[%emt 0:00:17]} 51. Qc6 {[%emt 0:00:18]} a4 {[%emt 0:00:47]} 52. Kd3 {[%emt 0:00:33]} a3 {[%emt 0:00:53]} 53. Qc2 {[%emt 0:07:12]} Qf1+ {[%emt 0:02:05]} 54. Kc3 {[%emt 0:01:17]} Qxb5 {[%emt 0:00:13]} 55. Qb3 {[%emt 0:00:07]} Qxb3+ {[%emt 0:00:16]} 56. Kxb3 {[%emt 0:00:05]} Kf6 {[%emt 0:00:07]} 57. Kxa3 {[%emt 0:00:08]} Ke5 {[%emt 0:00:05]} 58. Kb4 {[%emt 0:00:09]} Ke4 {[%emt 0:00:15]} 59. Kb5 {[%emt 0:00:10]} Kxe3 {[%emt 0:00:07]} 0-1